bitfinex/quotes_SOLUSD_20250217
["timestamp","ask_amount","ask_price","bid_price","bid_amount"]
[1739817363140,0.063,176.72,176.68,14.1491]
[1739817363514,0.063,176.72,176.68,33.19580191]
[1739817363824,0.063,176.72,176.69,19.04670191]
[1739817364126,0.063,176.72,176.68,33.19580191]
[1739817364604,0.063,176.72,176.65,5.6609]
[1739817364804,19.10970191,176.72,176.65,38.85980191]
[1739817365016,19.04670191,176.71,176.65,19.8131]
[1739817365423,0.063,176.72,176.66,19.04670191]
[1739817365819,0.063,176.72,176.68,19.04670191]
[1739817367227,0.063,176.72,176.69,5.6596]
[1739817369026,1.06093028,176.78,176.69,24.70630191]
[1739817369211,1.06093028,176.78,176.73,5.6583]
[1739817369525,32.84165044,176.85,176.73,5.6583]
[1739817369526,8.6781624,176.86,176.8,20.0]
[1739817369726,17.3563248,176.87,176.85,19.04670191]
[1739817370026,18.41222355,176.87,176.77,7.44917576]
[1739817370234,17.3563248,176.87,176.84,19.04670191]
[1739817370610,17.3563248,176.87,176.85,30.41767451]
[1739817370810,17.3563248,176.87,176.86,30.41767451]
[1739817371440,17.3563248,176.87,176.86,36.07177451]
[1739817371940,17.3563248,176.87,176.86,5.6541]
[1739817372310,17.3563248,176.87,176.86,36.07177451]
[1739817372512,0.063,176.9,176.86,5.6541]
[1739817373150,30.48067451,176.9,176.82,5.6554]
[1739817373330,30.41767451,176.86,176.82,5.6554]
[1739817373666,30.41767451,176.85,176.82,5.6554]
[1739817373809,30.41767451,176.85,176.79,30.41767451]
[1739817374010,30.41767451,176.85,176.8,5.6557]
[1739817374425,30.41767451,176.81,176.75,5.6577]
[1739817374624,30.41767451,176.77,176.72,5.6586]
[1739817374837,30.41767451,176.78,176.72,36.07627451]
[1739817375032,1.05589875,176.84,176.72,5.6586]
[1739817375033,30.41767451,176.77,176.72,5.6586]
[1739817375218,31.47357326,176.76,176.72,5.6586]
[1739817376240,30.41767451,176.76,176.7,30.41767451]
[1739817376433,30.41767451,176.77,176.71,5.6589]
[1739817376735,30.41767451,176.78,176.71,36.07657451]
[1739817376933,30.41767451,176.78,176.72,30.41767451]
[1739817377138,1.05589875,176.77,176.71,36.07657451]
[1739817377850,30.41767451,176.78,176.71,36.07657451]
[1739817378552,31.47357326,176.77,176.71,36.07657451]
[1739817379052,30.41767451,176.78,176.72,30.41767451]
[1739817379750,1.05589875,176.77,176.71,30.41767451]
[1739817380256,31.47357326,176.77,176.7,30.41767451]
[1739817380776,30.41767451,176.77,176.71,30.41767451]
[1739817382257,30.41767451,176.78,176.72,5.6586]
[1739817382426,1.05589875,176.77,176.72,5.6586]
[1739817383051,31.47357326,176.77,176.72,5.6586]
[1739817383554,30.41767451,176.78,176.72,5.6586]
[1739817383946,30.41767451,176.78,176.72,36.07627451]
[1739817384945,31.47357326,176.82,176.75,30.41767451]
[1739817385263,31.47357326,176.82,176.72,5.6586]
[1739817385264,30.41767451,176.79,176.73,30.41767451]
[1739817385462,30.41767451,176.77,176.72,5.6586]
[1739817385668,30.41767451,176.76,176.72,5.6586]
[1739817386035,1.05589875,176.81,176.72,5.6586]
[1739817386231,30.41767451,176.77,176.72,5.6586]
[1739817386635,30.41767451,176.78,176.72,36.07627451]
[1739817387061,30.41767451,176.79,176.73,30.41767451]
[1739817387270,30.41767451,176.8,176.74,30.41767451]
[1739817387635,30.41767451,176.78,176.72,50.22287451]
[1739817387855,30.41767451,176.77,176.72,19.8052]
[1739817388471,1.05589875,176.79,176.74,30.41767451]
[1739817388960,30.41767451,176.8,176.74,30.41767451]
[1739817389361,30.41767451,176.79,176.74,5.6577]
[1739817389559,30.41767451,176.77,176.72,5.6586]
[1739817391155,30.41767451,176.74,176.71,0.03]
[1739817391458,30.41767451,176.72,176.71,0.03]
[1739817392756,30.41767451,176.74,176.71,5.6889]
[1739817392948,30.41767451,176.74,176.71,0.03]
[1739817393349,30.41767451,176.73,176.71,0.03]
[1739817393844,30.41767451,176.74,176.71,0.03]
[1739817394238,1.05589875,176.81,176.73,30.41767451]
[1739817394442,30.41767451,176.79,176.73,30.41767451]
[1739817394748,19.03742723,176.79,176.73,19.03742723]
[1739817395369,19.03742723,176.77,176.72,5.6586]
[1739817395561,19.03742723,176.76,176.72,5.6586]
[1739817395860,19.03742723,176.75,176.71,5.6889]
[1739817396177,19.03742723,176.74,176.71,0.03]
[1739817396854,19.03742723,176.74,176.71,5.6888]
[1739817397060,19.03742723,176.77,176.71,24.72622723]
[1739817397262,39.03742723,176.78,176.71,24.72622723]
[1739817397461,1.05589875,176.77,176.71,24.72622723]
[1739817398272,20.09332598,176.77,176.71,24.72622723]
[1739817398472,19.03742723,176.76,176.71,5.6888]
[1739817398653,19.03742723,176.75,176.71,5.6888]
[1739817398852,19.03742723,176.76,176.71,5.6888]
[1739817399366,20.09332598,176.77,176.71,5.6888]
[1739817399567,19.03742723,176.78,176.72,19.03742723]
[1739817399774,20.09332598,176.79,176.73,19.03742723]
[1739817399972,19.10042723,176.81,176.74,19.03742723]
[1739817400179,1.05589875,176.8,176.74,19.03742723]
[1739817400479,20.15632598,176.81,176.75,19.03742723]
[1739817400972,25.81202598,176.81,176.75,19.03742723]
[1739817401271,25.81202598,176.81,176.74,19.03742723]
[1739817401581,19.03742723,176.8,176.74,19.03742723]
[1739817401948,20.15632598,176.81,176.75,24.69512723]
[1739817402666,25.81212598,176.81,176.75,24.69512723]
[1739817403071,19.03742723,176.8,176.75,5.6577]
[1739817403274,19.03742723,176.79,176.72,19.03742723]
[1739817403482,19.03742723,176.78,176.72,5.6586]
[1739817403705,19.03742723,176.77,176.72,5.6586]
[1739817403990,19.03742723,176.75,176.71,0.03]
[1739817404353,19.03742723,176.76,176.71,0.03]
[1739817404754,19.03742723,176.75,176.71,0.03]
[1739817405071,19.03742723,176.74,176.71,0.03]
[1739817405251,19.03742723,176.75,176.71,0.03]
[1739817406587,19.03742723,176.76,176.71,0.03]
[1739817407482,19.03742723,176.75,176.71,0.03]
[1739817407904,20.09332598,176.77,176.71,19.06742723]
[1739817408309,19.03742723,176.78,176.72,19.03742723]
[1739817408506,20.09332598,176.8,176.73,19.03742723]
[1739817408707,20.09332598,176.8,176.74,24.69542723]
[1739817409399,19.03742723,176.78,176.74,5.658]
[1739817410408,13.41184853,176.69,176.53,8.69259245]
[1739817410722,19.03742723,176.59,176.53,8.69259245]
[1739817410916,19.03742723,176.57,176.53,8.69259245]
[1739817411096,19.03742723,176.55,176.53,8.69259245]
[1739817411813,19.03742723,176.54,176.53,8.69259245]
[1739817412208,1.05589875,176.6,176.53,8.69259245]
[1739817412415,19.03742723,176.54,176.53,8.69259245]
[1739817412618,30.54768856,176.54,176.53,8.69259245]
[1739817413413,30.54768856,176.54,176.5,1.45]
[1739817413618,31.60358731,176.53,176.5,1.45]
[1739817414002,30.54768856,176.53,176.5,1.45]
[1739817415007,30.54768856,176.54,176.5,1.45]
[1739817415211,6.71959875,176.57,176.5,31.99768856]
[1739817415410,30.54768856,176.56,176.5,31.99768856]
[1739817415613,30.54768856,176.55,176.5,1.45]
[1739817416394,30.54768856,176.53,176.5,1.45]
[1739817416597,30.54768856,176.52,176.5,1.45]
[1739817417008,30.54768856,176.53,176.5,1.45]
[1739817417803,30.54768856,176.55,176.5,1.45]
[1739817418000,30.54768856,176.54,176.5,1.45]
[1739817418201,30.54768856,176.52,176.5,1.45]
[1739817418919,30.54768856,176.51,176.5,1.45]
[1739817419602,36.21308856,176.51,176.5,1.45]
[1739817419795,30.54768856,176.51,176.5,1.45]
[1739817420001,31.60358731,176.51,176.5,1.45]
[1739817420202,37.26898731,176.51,176.5,1.45]
[1739817420809,31.60358731,176.51,176.5,1.45]
[1739817421319,30.54768856,176.51,176.5,1.45]
[1739817421916,36.21308856,176.51,176.5,1.45]
[1739817422102,30.54768856,176.51,176.5,1.45]
[1739817422297,37.26898731,176.51,176.5,1.45]
[1739817423222,37.26898731,176.51,176.5,1.48]
[1739817425120,31.60358731,176.51,176.5,1.48]
[1739817425422,30.54768856,176.51,176.5,1.48]
[1739817426004,30.54768856,176.52,176.47,5.27460126]
[1739817426520,30.54768856,176.56,176.5,30.54768856]
[1739817426729,1.05589875,176.57,176.46,33.84730027]
[1739817426730,30.54768856,176.51,176.46,33.84730027]
[1739817426928,36.21078856,176.58,176.46,32.99747616]
[1739817426929,30.54768856,176.49,176.46,32.99747616]
[1739817427224,30.54768856,176.52,176.46,69.21206472]
[1739817427428,30.54768856,176.51,176.46,38.66437616]
[1739817427813,30.54768856,176.49,176.46,32.99747616]
[1739817428003,30.54768856,176.48,176.46,32.99747616]
[1739817428329,30.54768856,176.48,176.46,32.49747616]
[1739817428924,30.54768856,176.47,176.46,32.49747616]
[1739817430121,31.60358731,176.49,176.46,32.49747616]
[1739817430427,30.54768856,176.48,176.46,32.49747616]
[1739817430802,30.54768856,176.47,176.46,32.49747616]
[1739817431002,30.54768856,176.48,176.46,32.49747616]
[1739817431717,30.54768856,176.49,176.46,32.49747616]
[1739817432225,30.54768856,176.5,176.46,38.16447616]
[1739817432526,30.54768856,176.52,176.46,68.71216472]
[1739817432723,1.05589875,176.53,176.46,68.71216472]
[1739817432926,30.54768856,176.54,176.47,30.54768856]
[1739817433123,31.60358731,176.53,176.46,38.16447616]
[1739817433316,30.54768856,176.51,176.46,38.16447616]
[1739817433503,30.54768856,176.52,176.46,68.71216472]
[1739817433903,30.54768856,176.53,176.47,30.54768856]
[1739817434104,30.54768856,176.52,176.46,68.71216472]
[1739817434398,1.05589875,176.57,176.48,30.54768856]
[1739817434613,19.08898055,176.55,176.48,19.08898055]
[1739817435007,5.6628,176.59,176.48,19.08898055]
[1739817435208,19.08898055,176.55,176.48,19.08898055]
[1739817435627,19.08898055,176.55,176.49,19.08898055]
[1739817435819,19.08898055,176.56,176.5,19.08898055]
[1739817436018,19.08898055,176.57,176.51,24.75438055]
[1739817436209,19.08898055,176.58,176.51,38.91788055]
[1739817436408,19.08898055,176.58,176.52,19.08898055]
[1739817436812,19.08898055,176.58,176.51,19.8289]
[1739817437017,19.08898055,176.59,176.53,19.08898055]
[1739817437319,19.08898055,176.58,176.52,32.50082908]
[1739817437523,19.08898055,176.57,176.52,13.41184853]
[1739817437902,19.08898055,176.58,176.52,32.50082908]
[1739817438106,19.08898055,176.57,176.53,5.6647]
[1739817438309,19.08898055,176.56,176.51,5.6654]
[1739817439331,19.08898055,176.54,176.5,95.5056]
[1739817439505,19.08898055,176.54,176.5,95.5057]
[1739817439705,19.08898055,176.55,176.5,95.5057]
[1739817440046,19.08898055,176.56,176.5,114.59468055]
[1739817440241,19.08898055,176.57,176.52,5.665]
[1739817440740,19.08898055,176.58,176.52,24.75398055]
[1739817440903,19.08898055,176.59,176.53,19.08898055]
[1739817441104,19.08898055,176.57,176.52,19.8277]
[1739817441523,19.08898055,176.59,176.52,38.91668055]
[1739817441727,19.08898055,176.6,176.53,19.08898055]
[1739817442024,19.08898055,176.59,176.53,19.08898055]
[1739817442413,19.08898055,176.59,176.54,5.6644]
[1739817442934,19.08898055,176.6,176.54,38.91438055]
[1739817443312,19.08898055,176.59,176.54,19.8254]
[1739817443809,19.08898055,176.59,176.54,5.6644]
[1739817444429,19.08898055,176.59,176.53,24.75368055]
[1739817444836,19.08898055,176.57,176.53,5.6647]
[1739817445527,19.08898055,176.6,176.53,24.75368055]
[1739817445719,19.08898055,176.61,176.54,19.08898055]
[1739817445918,19.08898055,176.58,176.53,19.8265]
[1739817446428,19.08898055,176.59,176.53,19.8265]
[1739817446637,19.08898055,176.6,176.54,19.08898055]
[1739817447135,19.08898055,176.6,176.55,5.6641]
[1739817447333,19.08898055,176.62,176.55,24.75308055]
[1739817447516,19.08898055,176.62,176.55,38.91328055]
[1739817448538,19.08898055,176.62,176.56,19.08898055]
[1739817448909,19.08898055,176.61,176.55,5.6641]
[1739817449109,19.08898055,176.61,176.56,13.41184853]
[1739817449330,19.08898055,176.62,176.56,32.50082908]
[1739817450223,20.1448793,176.65,176.58,19.08898055]
[1739817450536,19.08898055,176.65,176.58,19.08898055]
[1739817450946,20.1448793,176.64,176.58,19.08898055]
[1739817451325,19.08898055,176.62,176.58,5.663]
[1739817452345,19.08898055,176.63,176.58,5.663]
[1739817452738,20.1448793,176.64,176.58,5.663]
[1739817452936,19.08898055,176.63,176.58,5.663]
[1739817453624,20.1448793,176.64,176.58,5.663]
[1739817453845,19.08898055,176.64,176.58,24.75198055]
[1739817454144,1.6588,176.68,176.59,19.08898055]
[1739817454145,19.08898055,176.66,176.59,19.08898055]
[1739817454326,20.1448793,176.67,176.6,19.08898055]
[1739817454649,19.08898055,176.65,176.59,19.08898055]
[1739817455138,19.08898055,176.66,176.59,19.08898055]
[1739817455337,1.05589875,176.65,176.6,19.08898055]
[1739817455539,1.05589875,176.65,176.61,19.08898055]
[1739817455739,1.05589875,176.67,176.62,5.6618]
[1739817455942,19.08898055,176.65,176.61,5.6621]
[1739817456337,20.1448793,176.64,176.61,5.6621]
[1739817456541,19.08898055,176.66,176.61,5.6621]
[1739817457049,1.05589875,176.65,176.61,5.6621]
[1739817457242,20.1448793,176.65,176.61,5.6621]
[1739817457865,20.1448793,176.65,176.6,5.6625]
[1739817458038,19.08898055,176.64,176.6,5.6625]
[1739817458358,19.08898055,176.66,176.6,24.75148055]
[1739817458556,1.05589875,176.65,176.6,24.75148055]
[1739817459743,1.11889875,176.71,176.64,19.08898055]
[1739817459931,1.11889875,176.71,176.67,19.08898055]
[1739817460643,1.11889875,176.71,176.66,19.08898055]
[1739817460837,0.063,176.71,176.68,19.08898055]
[1739817461444,0.063,176.71,176.69,19.08898055]
[1739817461941,0.063,176.71,176.7,5.6593]
[1739817462648,0.063,176.71,176.7,24.74828055]
[1739817464456,0.063,176.76,176.7,52.30832908]
[1739817464627,0.063,176.76,176.75,19.08898055]
[1739817465944,0.063,176.76,176.75,32.50082908]
[1739817466254,0.063,176.76,176.75,38.15852908]
[1739817469131,0.063,176.81,176.75,52.30272908]
[1739817469346,0.063,176.81,176.78,19.08898055]
[1739817471167,0.063,176.81,176.8,19.08898055]
[1739817471458,0.063,176.81,176.79,24.74538055]
[1739817471654,0.063,176.81,176.8,19.08898055]
[1739817473353,0.063,176.81,176.8,24.74508055]
[1739817474557,19.15198055,176.81,176.72,6.2281]
[1739817474758,19.08898055,176.78,176.73,5.6583]
[1739817475058,1.11889875,176.81,176.74,19.08898055]
[1739817475059,19.08898055,176.8,176.74,19.08898055]
[1739817475255,19.15198055,176.81,176.76,24.74628055]
[1739817475469,19.15198055,176.81,176.76,5.6573]
[1739817475960,0.063,176.81,176.76,24.74628055]
[1739817476280,0.063,176.81,176.79,19.08898055]
[1739817477468,0.063,176.81,176.79,24.74508055]
[1739817478259,0.063,176.81,176.8,13.41184853]
[1739817478469,0.063,176.81,176.8,32.50082908]
[1739817479487,0.063,176.81,176.78,19.08898055]
[1739817480173,0.063,176.81,176.77,19.7996]
[1739817480372,19.15198055,176.81,176.77,5.657]
[1739817480691,0.063,176.81,176.78,19.08898055]
[1739817481191,0.063,176.81,176.77,5.657]
[1739817481192,0.063,176.81,176.77,24.74598055]
[1739817481975,0.063,176.81,176.77,5.657]
[1739817483202,19.08898055,176.78,176.74,89.72]
[1739817483404,19.08898055,176.75,176.74,89.72]
[1739817484280,19.08898055,176.8,176.74,114.46678055]
[1739817484613,0.063,176.81,176.76,19.08898055]
[1739817484904,19.08898055,176.79,176.74,95.3778]
[1739817485070,19.08898055,176.75,176.74,89.72]
[1739817486369,25.8025793,176.75,176.71,0.03]
[1739817486572,19.08898055,176.72,176.71,0.03]
[1739817487578,1.05589875,176.77,176.71,24.77768055]
[1739817487792,0.063,176.81,176.76,19.08898055]
[1739817487974,0.063,176.81,176.77,19.08898055]
[1739817488179,0.063,176.81,176.78,19.08898055]
[1739817488470,0.063,176.81,176.77,19.08898055]
[1739817489183,0.063,176.81,176.78,19.08898055]
[1739817489875,0.063,176.81,176.79,5.6564]
[1739817490379,19.15198055,176.81,176.75,19.08898055]
[1739817490582,30.4547307,176.8,176.74,36.1127307]
[1739817490804,30.4547307,176.79,176.74,5.658]
[1739817490978,31.51062945,176.78,176.73,5.6582]
[1739817491289,30.4547307,176.77,176.72,5.6586]
[1739817491491,30.4547307,176.75,176.71,0.03]
[1739817491796,30.4547307,176.75,176.71,5.6888]
[1739817491993,30.4547307,176.76,176.71,0.03]
[1739817492292,30.4547307,176.74,176.71,0.03]
[1739817492693,30.4547307,176.76,176.71,0.03]
[1739817493394,30.4547307,176.74,176.71,0.03]
[1739817493606,31.51062945,176.73,176.71,0.03]
[1739817493823,30.4547307,176.73,176.71,0.03]
[1739817494101,1.05589875,176.78,176.71,0.03]
[1739817494102,31.51062945,176.72,176.71,0.03]
[1739817496098,6.3009,176.78,176.71,0.03]
[1739817496099,31.51062945,176.75,176.71,0.03]
[1739817496592,30.4547307,176.72,176.71,0.03]
[1739817497905,20.0,176.69,176.59,5.6627]
[1739817498202,30.4547307,176.65,176.59,30.4547307]
[1739817498409,30.4547307,176.66,176.61,5.6621]
[1739817498701,31.51062945,176.65,176.6,5.6624]
[1739817498906,30.4547307,176.65,176.6,5.6624]
[1739817499206,30.4547307,176.66,176.6,5.6624]
[1739817499795,31.51062945,176.65,176.59,30.4547307]
[1739817499989,31.51062945,176.65,176.58,0.03]
[1739817499990,30.4547307,176.62,176.58,0.03]
[1739817500302,1.05589875,176.65,176.58,5.693]
[1739817500504,30.4547307,176.63,176.58,5.693]
[1739817500806,1.05589875,176.62,176.58,0.03]
[1739817501505,30.4547307,176.63,176.58,0.03]
[1739817501708,30.4547307,176.63,176.58,5.693]
[1739817502406,30.4547307,176.64,176.58,5.693]
[1739817502607,31.51062945,176.65,176.59,30.4547307]
[1739817502795,1.05589875,176.65,176.59,30.4547307]
[1739817503107,31.51062945,176.66,176.6,30.4547307]
[1739817503412,30.4547307,176.66,176.6,30.4547307]
[1739817503708,30.4547307,176.67,176.6,30.4547307]
[1739817503911,31.51062945,176.68,176.62,30.4547307]
[1739817504219,30.4547307,176.67,176.61,30.4547307]
[1739817504506,30.4547307,176.68,176.62,5.6618]
[1739817504719,30.4547307,176.69,176.63,30.4547307]
[1739817504917,30.4547307,176.71,176.64,30.4547307]
[1739817505082,31.51062945,176.71,176.64,30.4547307]
[1739817505612,30.4547307,176.7,176.64,30.4547307]
[1739817506119,30.4547307,176.7,176.65,5.6609]
[1739817506321,31.51062945,176.71,176.65,36.1156307]
[1739817506620,30.4547307,176.7,176.64,5.6612]
[1739817506797,30.4547307,176.71,176.65,30.4547307]
[1739817507002,30.5177307,176.72,176.66,30.4547307]
[1739817507193,0.063,176.72,176.67,30.4547307]
[1739817507515,31.57362945,176.72,176.65,30.4547307]
[1739817507739,37.23232945,176.72,176.65,30.4547307]
[1739817508307,31.57362945,176.72,176.66,30.4547307]
[1739817508622,37.23232945,176.72,176.66,30.4547307]
[1739817508941,30.4547307,176.7,176.64,30.4547307]
[1739817509122,31.57362945,176.72,176.66,30.4547307]
[1739817509440,0.063,176.72,176.68,30.4547307]
[1739817509810,30.5177307,176.72,176.66,30.4547307]
[1739817510009,30.5177307,176.72,176.64,0.84886089]
[1739817510010,30.4547307,176.71,176.65,30.4547307]
[1739817510210,31.51062945,176.71,176.64,30.4547307]
[1739817510411,30.4547307,176.7,176.64,36.1156307]
[1739817510640,30.4547307,176.69,176.63,43.86657923]
[1739817510816,6.71489875,176.71,176.63,19.07324853]
[1739817510817,30.4547307,176.68,176.63,19.07324853]
[1739817511319,6.71489875,176.71,176.6,0.8489431]
[1739817511320,31.51062945,176.67,176.6,30.4547307]
[1739817511629,31.51062945,176.67,176.58,20.03]
[1739817511630,30.4547307,176.65,176.59,36.1175307]
[1739817511817,30.4547307,176.63,176.58,5.693]
[1739817512013,30.4547307,176.62,176.58,0.03]
[1739817512736,30.4547307,176.64,176.58,0.03]
[1739817512937,36.1156307,176.65,176.58,43.89657923]
[1739817514034,30.4547307,176.65,176.59,30.4547307]
[1739817514216,30.4547307,176.67,176.6,30.4547307]
[1739817514418,30.4547307,176.67,176.61,30.4547307]
[1739817514919,30.4547307,176.67,176.6,43.86657923]
[1739817515127,30.4547307,176.65,176.6,13.41184853]
[1739817515329,30.4547307,176.65,176.59,5.6628]
[1739817516007,1.05589875,176.66,176.6,13.41184853]
[1739817516214,30.4547307,176.7,176.64,30.4547307]
[1739817516409,30.4547307,176.68,176.62,30.4547307]
[1739817516636,30.4547307,176.68,176.62,5.6617]
[1739817516829,30.4547307,176.66,176.6,36.1171307]
[1739817517026,30.4547307,176.69,176.63,30.4547307]
[1739817517336,30.4547307,176.69,176.6,5.6624]
[1739817517337,30.4547307,176.7,176.64,30.4547307]
[1739817518616,0.063,176.72,176.66,30.4547307]
[1739817518833,1.11889875,176.72,176.66,30.4547307]
[1739817519036,30.5177307,176.72,176.66,30.4547307]
[1739817519234,30.5177307,176.72,176.65,30.4547307]
[1739817519442,30.4547307,176.71,176.65,30.4547307]
[1739817520640,30.5177307,176.72,176.66,13.41184853]
[1739817520838,30.4547307,176.71,176.66,5.6604]
[1739817522014,30.4547307,176.71,176.64,30.4547307]
[1739817522329,30.4547307,176.69,176.62,36.1165307]
[1739817522641,30.4547307,176.69,176.63,30.4547307]
[1739817522834,30.4547307,176.7,176.64,30.4547307]
[1739817524222,36.1140307,176.7,176.64,36.1158307]
[1739817524526,30.4547307,176.69,176.64,5.6611]
[1739817524729,19.0580902,176.69,176.64,5.6611]
[1739817525041,24.7173902,176.7,176.64,5.6611]
[1739817525743,19.0580902,176.69,176.64,5.6611]
[1739817526047,19.0580902,176.67,176.61,5.6621]
[1739817526233,19.0580902,176.66,176.61,5.6621]
[1739817526544,19.0580902,176.64,176.58,0.03]
[1739817526730,19.0580902,176.64,176.59,95.4227]
[1739817527130,19.0580902,176.63,176.59,95.4227]
[1739817527334,19.0580902,176.62,176.59,89.76]
[1739817528546,19.0580902,176.64,176.59,89.76]
[1739817528944,19.0580902,176.64,176.59,95.4228]
[1739817530245,19.0580902,176.67,176.61,5.6621]
[1739817530445,19.0580902,176.69,176.62,32.46993873]
[1739817530630,20.11398895,176.69,176.62,32.46993873]
[1739817530947,19.0580902,176.68,176.62,32.46993873]
[1739817531328,19.0580902,176.68,176.62,19.0580902]
[1739817531627,5.6599,176.68,176.61,5.6621]
[1739817531832,19.0580902,176.66,176.61,5.6621]
[1739817532252,19.0580902,176.67,176.61,24.7201902]
[1739817532439,19.0580902,176.68,176.61,24.7201902]
[1739817532742,19.0580902,176.68,176.62,19.0580902]
[1739817533961,24.7180902,176.68,176.61,38.13203873]
[1739817534138,24.2180902,176.68,176.61,38.13203873]
[1739817534549,18.5580902,176.68,176.61,38.13203873]
[1739817534746,18.5580902,176.68,176.62,19.0580902]
[1739817536159,18.5580902,176.68,176.62,24.7196902]
[1739817536362,19.0580902,176.63,176.59,0.03]
[1739817536664,19.0580902,176.61,176.59,0.03]
[1739817537423,19.0580902,176.63,176.59,0.03]
[1739817537838,27.94558895,176.67,176.59,0.03]
[1739817537839,19.0580902,176.62,176.59,0.03]
[1739817538258,24.7200902,176.62,176.59,0.03]
[1739817538463,19.0580902,176.6,176.59,0.03]
[1739817540262,24.7205902,176.6,176.59,0.03]
[1739817540960,5.6625,176.6,176.59,0.03]
[1739817542042,25.77648895,176.6,176.59,0.03]
[1739817542859,24.7205902,176.6,176.59,0.03]
[1739817544974,19.0580902,176.6,176.59,0.03]
[1739817545276,24.7205902,176.6,176.59,0.03]
[1739817547075,19.0580902,176.61,176.59,0.03]
[1739817547264,24.7202902,176.61,176.59,0.03]
[1739817547470,24.7198902,176.62,176.59,0.03]
[1739817549962,19.0580902,176.62,176.59,0.03]
[1739817550378,19.0580902,176.64,176.59,0.03]
[1739817550683,24.7193902,176.64,176.59,0.03]
[1739817551059,19.0580902,176.64,176.59,0.03]
[1739817551470,19.0580902,176.64,176.59,5.6928]
[1739817552484,19.0580902,176.65,176.59,24.7508902]
[1739817552666,19.0580902,176.65,176.6,13.41184853]
[1739817553065,19.0580902,176.66,176.6,32.46993873]
[1739817553277,20.17698895,176.68,176.62,19.0580902]
[1739817553466,19.1210902,176.68,176.62,19.0580902]
[1739817553672,19.1210902,176.68,176.63,5.6615]
[1739817554557,0.063,176.68,176.63,24.7195902]
[1739817554978,0.063,176.68,176.64,19.0580902]
[1739817555275,0.063,176.68,176.65,19.0580902]
[1739817555661,0.063,176.68,176.64,19.0580902]
[1739817556364,19.1210902,176.68,176.63,13.41184853]
[1739817556871,19.1210902,176.68,176.63,32.46993873]
[1739817556872,0.063,176.68,176.63,32.46993873]
[1739817557082,19.1210902,176.68,176.63,32.46993873]
[1739817557770,19.1210902,176.68,176.63,38.13133873]
[1739817557969,0.063,176.68,176.63,38.13133873]
[1739817558766,0.063,176.68,176.65,13.41184853]
[1739817558967,0.063,176.68,176.67,19.0580902]
[1739817559175,0.063,176.68,176.67,32.46993873]
[1739817559784,0.063,176.68,176.67,38.13013873]
[1739817560185,0.063,176.68,176.67,38.97884]
[1739817561988,0.0001,176.68,176.67,38.97884]
[1739817562191,0.0001,176.68,176.67,64.5174302]
[1739817562400,0.0001,176.68,176.67,66.33203027]
[1739817562896,0.0001,176.68,176.67,45.45934]
[1739817564162,0.0001,176.68,176.67,19.07204853]
[1739817564368,19.0581902,176.68,176.64,5.6612]
[1739817564583,19.0580902,176.65,176.63,89.81]
[1739817564790,19.0580902,176.64,176.63,89.81]
[1739817566789,19.0580902,176.65,176.63,89.81]
[1739817567086,0.0001,176.68,176.63,89.81]
[1739817567386,19.0580902,176.66,176.63,89.81]
[1739817567690,19.0581902,176.68,176.63,95.4714]
[1739817568371,0.0001,176.68,176.63,114.5294902]
[1739817568585,0.0001,176.68,176.63,95.4714]
[1739817568781,19.0581902,176.68,176.63,95.4714]
[1739817572676,18.0581902,176.68,176.63,95.4714]
[1739817574090,18.1211902,176.68,176.63,95.4714]
[1739817579695,19.0580902,176.67,176.63,95.4714]
[1739817579876,19.1210902,176.68,176.63,95.4714]
[1739817580071,19.1210902,176.68,176.63,5.6914]
[1739817584092,19.0580902,176.64,176.63,0.03]
[1739817586480,24.7192902,176.64,176.63,0.03]
[1739817586677,24.7192902,176.64,176.59,0.03]
[1739817586998,19.0580902,176.6,176.59,0.03]
[1739817588688,24.7205902,176.6,176.59,0.03]
[1739817596011,43.7786804,176.6,176.59,0.03]
[1739817597294,43.7786804,176.6,176.58,0.03]
[1739817597494,19.0580902,176.54,176.53,0.03]
[1739817598511,24.7224902,176.54,176.53,0.03]
[1739817599410,24.7222902,176.55,176.53,0.03]
[1739817599790,20.11398895,176.54,176.53,0.03]
[1739817601209,25.77838895,176.54,176.53,0.03]
[1739817603011,39.93938895,176.54,176.46,32.49747616]
[1739817603218,19.0580902,176.5,176.46,32.49747616]
[1739817603713,20.11398895,176.49,176.46,32.49747616]
[1739817603918,19.0580902,176.49,176.46,32.49747616]